bitfinex-derivatives/quotes_SOLF0:USTF0_20241208
["timestamp","ask_amount","ask_price","bid_price","bid_amount"]
[1733642047014,2.1014,237.78,237.74,1.8]
[1733642047313,2.1014,237.78,237.75,2.10278968]
[1733642047514,2.1014,237.78,237.74,1.8]
[1733642047716,2.1013,237.79,237.75,4.20441134]
[1733642048014,2.1013,237.79,237.75,2.1016]
[1733642048314,2.1013,237.79,237.76,2.10271582]
[1733642048515,2.1013,237.79,237.75,2.1016]
[1733642048814,2.1013,237.79,237.76,2.10271434]
[1733642049015,2.1013,237.79,237.75,2.1016]
[1733642049314,2.1013,237.79,237.76,2.10271434]
[1733642049510,2.1013,237.79,237.75,2.1016]
[1733642049716,1.8,237.83,237.76,2.10271582]
[1733642050012,1.8,237.83,237.77,8.63242045]
[1733642050213,6.52976658,237.84,237.78,1.05132921]
[1733642050412,2.101,237.83,237.78,2.1013]
[1733642053316,2.101,237.83,237.79,1.05125443]
[1733642053517,2.101,237.82,237.78,2.1013]
[1733642053715,2.101,237.82,237.79,1.05125082]
[1733642053912,2.101,237.82,237.78,2.1013]
[1733642054114,2.101,237.82,237.79,1.05125082]
[1733642054313,2.101,237.82,237.78,2.1013]
[1733642054518,2.101,237.82,237.79,1.05125082]
[1733642054814,2.101,237.82,237.78,2.1013]
[1733642055012,2.101,237.82,237.79,1.05125082]
[1733642055216,2.101,237.82,237.78,2.1013]
[1733642055418,2.101,237.82,237.79,1.05125092]
[1733642055711,2.101,237.82,237.78,2.1013]
[1733642055916,2.101,237.82,237.79,1.05125099]
[1733642056112,2.101,237.82,237.78,2.1013]
[1733642056319,2.101,237.82,237.79,1.05125099]
[1733642056618,2.101,237.82,237.78,2.1013]
[1733642056918,2.101,237.82,237.79,1.05125554]
[1733642057118,2.101,237.82,237.78,2.1013]
[1733642057320,2.101,237.82,237.79,1.05125915]
[1733642057511,2.101,237.82,237.78,2.1013]
[1733642057717,2.101,237.82,237.79,1.05125912]
[1733642057919,2.101,237.82,237.78,2.1013]
[1733642058116,2.101,237.82,237.79,1.05125911]
[1733642058315,2.101,237.82,237.78,2.1013]
[1733642058619,2.101,237.82,237.79,1.05125915]
[1733642058814,2.101,237.82,237.78,2.1013]
[1733642059020,2.101,237.82,237.79,1.05125554]
[1733642059320,2.101,237.82,237.78,2.1013]
[1733642059521,2.101,237.82,237.79,1.05125193]
[1733642059834,2.101,237.82,237.78,2.1013]
[1733642060016,2.101,237.82,237.79,1.05125193]
[1733642060215,2.101,237.82,237.78,2.1013]
[1733642060414,2.101,237.82,237.79,1.05125099]
[1733642060718,2.101,237.82,237.78,2.1013]
[1733642060918,2.101,237.82,237.79,1.05125099]
[1733642061119,2.101,237.82,237.78,2.1013]
[1733642061317,2.101,237.82,237.79,1.05125099]
[1733642061518,2.101,237.82,237.78,2.1013]
[1733642061719,2.101,237.82,237.79,2.10249476]
[1733642062023,2.101,237.82,237.78,2.1013]
[1733642062318,2.1011,237.81,237.79,1.05125267]
[1733642062519,2.1011,237.81,237.78,2.1013]
[1733642062721,2.1011,237.81,237.79,1.05125267]
[1733642062920,2.1011,237.81,237.78,2.1013]
[1733642063121,2.1011,237.81,237.79,1.0512582]
[1733642063326,2.1011,237.81,237.78,2.1013]
[1733642063521,2.1011,237.81,237.79,1.05126507]
[1733642063715,2.1011,237.81,237.78,2.1013]
[1733642063912,2.1011,237.81,237.79,1.05126507]
[1733642064119,2.1011,237.81,237.78,2.1013]
[1733642064314,2.1011,237.81,237.79,1.05126208]
[1733642064529,2.1011,237.81,237.78,2.1013]
[1733642064721,2.1011,237.81,237.79,1.05126208]
[1733642065027,2.1011,237.81,237.78,2.1013]
[1733642065224,2.1011,237.81,237.79,1.05126208]
[1733642065526,2.1011,237.81,237.78,2.1013]
[1733642065720,2.1011,237.81,237.79,1.05126569]
[1733642065922,2.1011,237.81,237.78,2.1013]
[1733642066220,2.1011,237.81,237.79,1.05126569]
[1733642066519,2.1011,237.81,237.78,2.1013]
[1733642066725,2.1011,237.81,237.79,1.05125679]
[1733642066925,2.1011,237.81,237.78,2.1013]
[1733642067116,2.1011,237.81,237.79,1.05125679]
[1733642067320,2.1011,237.81,237.78,2.1013]
[1733642067519,2.1011,237.81,237.79,1.0512604]
[1733642067827,2.1011,237.81,237.78,2.1013]
[1733642068126,2.1011,237.81,237.79,1.05125882]
[1733642068323,2.1011,237.81,237.78,2.1013]
[1733642068523,2.1011,237.81,237.79,1.05125826]
[1733642068719,2.1011,237.81,237.78,2.1013]
[1733642069024,2.1011,237.81,237.79,1.05125255]
[1733642069221,2.1011,237.81,237.78,2.1013]
[1733642069427,2.1011,237.81,237.79,1.05125255]
[1733642069623,2.1011,237.81,237.78,2.1013]
[1733642069825,2.1011,237.81,237.79,1.05125615]
[1733642070025,2.1011,237.81,237.78,2.1013]
[1733642070429,2.1011,237.81,237.79,1.05125541]
[1733642070621,2.1011,237.81,237.78,2.1013]
[1733642070822,6.52976658,237.81,237.76,1.8]
[1733642071023,2.1014,237.79,237.77,1.05133773]
[1733642071229,2.1014,237.79,237.75,2.1016]
[1733642071430,2.1014,237.79,237.76,1.05135977]
[1733642071623,6.52976658,237.81,237.75,2.1016]
[1733642071831,2.1014,237.78,237.75,2.1016]
[1733642072932,2.1013,237.79,237.75,2.1016]
[1733642073524,2.1013,237.79,237.76,1.05139959]
[1733642073825,2.1013,237.79,237.73,6.52976658]
[1733642074031,2.1013,237.79,237.76,2.1015]
[1733642074329,2.1013,237.79,237.77,1.05136469]
[1733642074529,2.1013,237.79,237.76,2.1015]
[1733642074730,1.8,237.86,237.77,1.05136469]
[1733642075031,2.1012,237.8,237.76,2.1015]
[1733642075235,2.1012,237.8,237.77,1.05136354]
[1733642075431,2.1012,237.8,237.76,2.1015]
[1733642075634,2.1012,237.8,237.77,1.05136013]
[1733642075827,2.1012,237.8,237.76,2.1015]
[1733642076028,2.1012,237.8,237.77,1.05136013]
[1733642076226,2.1012,237.8,237.76,2.1015]
[1733642076433,2.1012,237.8,237.77,1.05135943]
[1733642076731,2.1012,237.8,237.76,2.1015]
[1733642076927,2.1012,237.8,237.77,1.05136435]
[1733642077123,2.1012,237.8,237.76,2.1015]
[1733642077323,1.8,237.86,237.77,3.15276448]
[1733642077528,6.52976658,237.84,237.78,1.05134278]
[1733642077832,6.52976658,237.84,237.79,2.10252268]
[1733642078026,6.52976658,237.84,237.75,6.52976658]
[1733642078229,6.52976658,237.84,237.76,8.40174268]
[1733642078425,6.52976658,237.84,237.77,3.7845401]
[1733642078630,2.101,237.82,237.79,2.1013]
[1733642085546,2.101,237.82,237.78,2.1014]
[1733642085547,2.1011,237.81,237.78,2.1014]
[1733642088240,6.52976658,237.82,237.76,1.8]
[1733642088444,8.63086658,237.82,237.78,2.1013]
[1733642091450,8.63086658,237.82,237.76,1.8]
[1733642091451,2.1011,237.82,237.79,3.15258481]
[1733642091750,2.1011,237.82,237.79,2.1013]
[1733642091946,2.1008,237.84,237.77,6.52976658]
[1733642092252,2.1008,237.84,237.8,2.1011]
[1733642094055,1.78,237.89,237.82,2.101]
[1733642094056,2.1007,237.86,237.82,2.101]
[1733642094348,6.52976658,237.86,237.79,6.52976658]
[1733642094651,6.52976658,237.86,237.8,2.10231878]
[1733642094852,6.52976658,237.86,237.81,1.05115939]
[1733642095047,2.7208,237.91,237.81,6.52976658]
[1733642095352,6.52976658,237.88,237.82,2.10223067]
[1733642095546,6.52976658,237.88,237.81,8.30976658]
[1733642095744,8.63026658,237.88,237.84,2.1008]
[1733642095948,8.63026658,237.88,237.81,8.30976658]
[1733642096253,8.63026658,237.88,237.82,2.10218124]
[1733642096453,2.1005,237.88,237.85,2.1007]
[1733642096952,2.1005,237.88,237.84,2.1008]
[1733642097349,8.63026658,237.88,237.84,2.1008]
[1733642097654,6.52976658,237.86,237.76,1.3658]
[1733642097853,6.52976658,237.86,237.77,1.78]
[1733642098152,2.1007,237.86,237.8,6.52976658]
[1733642098355,2.1007,237.86,237.81,2.10226978]
[1733642098554,2.1007,237.86,237.82,2.10226978]
[1733642098754,2.1007,237.86,237.83,1.05113489]
[1733642098953,2.1007,237.86,237.8,8.30976658]
[1733642099152,2.1007,237.86,237.81,3.78379991]
[1733642099456,2.1007,237.86,237.82,2.10211106]
[1733642099652,2.1007,237.86,237.83,1.05105553]
[1733642099853,2.1007,237.86,237.8,8.30976658]
[1733642100050,2.1008,237.85,237.81,2.10209356]
[1733642100352,2.1008,237.85,237.8,10.41096658]
[1733642100548,2.1008,237.85,237.81,2.10221326]
[1733642100853,2.1008,237.85,237.8,3.8812]
[1733642101156,6.52976658,237.86,237.81,1.05111843]
[1733642101157,2.1008,237.84,237.81,1.05111843]
[1733642101457,2.1008,237.84,237.8,3.8812]
[1733642101654,2.1008,237.84,237.81,1.05112867]
[1733642101854,2.1008,237.84,237.8,3.8812]
[1733642102055,2.1008,237.84,237.81,1.05112865]
[1733642102252,2.1008,237.84,237.8,3.8812]
[1733642102452,2.1008,237.84,237.81,2.10224814]
[1733642102652,2.1008,237.84,237.8,3.8812]
[1733642102855,2.1008,237.84,237.81,2.10224814]
[1733642103060,2.1008,237.84,237.8,3.8812]
[1733642103255,2.1008,237.84,237.81,2.10224666]
[1733642103455,2.1008,237.84,237.8,3.8812]
[1733642103658,2.1008,237.84,237.81,1.05111972]
[1733642103854,2.1008,237.84,237.8,3.8812]
[1733642104052,2.1008,237.84,237.81,1.05112057]
[1733642104256,2.1008,237.84,237.8,3.8812]
[1733642104455,2.1008,237.84,237.81,1.05112057]
[1733642104657,2.1008,237.84,237.8,3.8812]
[1733642104858,2.1008,237.84,237.81,1.05112343]
[1733642105161,2.1008,237.84,237.8,3.8812]
[1733642105355,2.1008,237.84,237.81,1.05111983]
[1733642105563,2.1008,237.84,237.8,3.8812]
[1733642105753,2.1008,237.84,237.81,1.05111983]
[1733642105958,2.1008,237.84,237.8,3.8812]
[1733642106162,2.1008,237.84,237.81,1.05112343]
[1733642106461,2.1008,237.84,237.8,3.8812]
[1733642106761,2.1008,237.84,237.81,1.05112343]
[1733642107059,2.1008,237.84,237.8,3.8812]
[1733642107261,2.1008,237.84,237.81,1.05112057]
[1733642107460,2.1008,237.84,237.8,3.8812]
[1733642107665,2.1011,237.81,237.77,2.1014]
[1733642107856,2.1011,237.81,237.78,1.05122785]
[1733642108056,2.1011,237.81,237.77,2.1014]
[1733642108254,2.1011,237.81,237.78,1.05124886]
[1733642108464,2.1011,237.81,237.77,2.1014]
[1733642108662,2.1011,237.81,237.78,1.05125547]
[1733642108866,2.1011,237.81,237.77,2.1014]
[1733642109069,2.1011,237.81,237.78,1.05125547]
[1733642109266,2.1011,237.81,237.77,2.1014]
[1733642109461,2.1011,237.81,237.78,1.05125547]
[1733642109664,2.1011,237.81,237.77,2.1014]
[1733642110965,6.52976658,237.82,237.76,3.8815]
[1733642111166,6.52976658,237.82,237.77,2.10253162]
[1733642111365,6.52976658,237.82,237.76,3.8815]
[1733642111663,2.1012,237.8,237.77,4.20393162]
[1733642111866,2.1012,237.8,237.78,1.05126581]
[1733642112064,2.1012,237.8,237.77,2.1014]
[1733642112266,2.1012,237.8,237.78,1.05125779]
[1733642112466,2.1012,237.8,237.77,2.1014]
[1733642112767,2.1012,237.8,237.78,2.10250697]
[1733642113068,2.1012,237.8,237.77,2.1014]
[1733642113367,2.1012,237.8,237.78,2.10250394]
[1733642113570,2.1012,237.8,237.77,2.1014]
[1733642113769,2.1011,237.81,237.77,2.1014]
[1733642113965,2.1011,237.81,237.78,2.10250074]
[1733642114269,2.1011,237.81,237.77,2.1014]
[1733642114568,2.1011,237.81,237.78,2.10249122]
[1733642114866,2.1011,237.81,237.79,1.0512418]
[1733642115070,2.1011,237.81,237.77,8.63116658]
[1733642115271,2.1011,237.81,237.78,2.1024836]
[1733642115459,2.1011,237.81,237.79,1.0512418]
[1733642115665,2.1011,237.81,237.77,8.63116658]
[1733642115861,2.1011,237.81,237.78,2.1024838]
[1733642116068,2.1011,237.81,237.79,1.0512419]
[1733642116359,2.6546,237.9,237.79,6.52976658]
[1733642116567,2.6546,237.9,237.76,1.78]
[1733642116568,6.52976658,237.88,237.8,1.0512041]
[1733642116869,6.52976658,237.88,237.81,2.1011]
[1733642117471,2.1008,237.85,237.81,2.1011]
[1733642118564,2.1008,237.85,237.82,2.101]
[1733642119668,3.1589,237.91,237.82,2.101]
[1733642119669,2.1007,237.86,237.82,2.101]
[1733642123870,1.3789,237.91,237.81,1.78]
[1733642124067,3.1589,237.91,237.84,2.1008]
[1733642124371,6.52976658,237.9,237.84,2.1008]
[1733642124770,6.52976658,237.93,237.87,2.1006]
[1733642125468,6.52976658,237.96,237.88,10.4114553]
[1733642125674,6.52976658,237.96,237.89,2.83080356]
[1733642125967,6.52976658,237.96,237.89,1.78]
[1733642126166,2.1001,237.93,237.89,3.8804]
[1733642126972,2.1001,237.93,237.89,1.78]
[1733642130071,2.1001,237.92,237.89,1.78]
[1733642132770,6.52976658,237.91,237.83,1.383]
[1733642132978,6.52976658,237.89,237.84,2.83090534]
[1733642133275,6.52976658,237.89,237.82,1.3368]
[1733642133276,2.1009,237.84,237.82,1.3368]
[1733642133677,2.1009,237.84,237.81,1.78]
[1733642135569,1.2927,237.92,237.76,1.2965]
[1733642135570,2.1011,237.81,237.76,1.2965]
[1733642135875,2.1011,237.81,237.77,1.78]
[1733642138377,2.1013,237.79,237.76,6.52976658]
[1733642138578,2.1013,237.79,237.75,2.1016]
[1733642141181,6.52976658,237.83,237.75,2.1016]
[1733642141483,2.1012,237.8,237.75,2.1016]
[1733642141679,6.52976658,237.83,237.75,2.1016]
[1733642143479,6.52976658,237.81,237.73,2.1017]
[1733642143680,6.52976658,237.79,237.73,2.1017]
[1733642144574,2.1014,237.78,237.73,2.1017]
[1733642146385,2.1015,237.77,237.73,2.1017]
[1733642146879,6.52976658,237.79,237.71,2.102]
[1733642146880,2.1016,237.75,237.71,2.102]
[1733642149675,2.1015,237.77,237.72,2.1019]
[1733642149877,8.30976658,237.79,237.72,2.1019]
[1733642150278,2.1016,237.76,237.72,2.1019]
[1733642153177,2.1017,237.75,237.71,2.102]
[1733642153881,6.52976658,237.77,237.69,2.6911]
[1733642154088,6.52976658,237.75,237.67,50.20124031]
[1733642154582,1.78,237.79,237.66,6.52976658]
[1733642154583,2.1021,237.7,237.66,6.52976658]
[1733642155591,2.1018,237.73,237.68,8.63196658]
[1733642155782,1.3532,237.82,237.71,6.52976658]
[1733642155783,1.78,237.78,237.71,6.52976658]
[1733642156583,6.52976658,237.79,237.71,6.52976658]
[1733642156785,2.1015,237.77,237.73,2.1018]
[1733642156988,2.1015,237.77,237.73,8.63156658]
[1733642158286,2.1015,237.77,237.74,2.1017]
[1733642160391,2.1015,237.77,237.73,8.63156658]
[1733642161186,2.1015,237.77,237.73,2.1018]
[1733642161889,6.52976658,237.79,237.73,2.1018]
[1733642162088,2.1017,237.75,237.71,2.1019]
[1733642162390,6.52976658,237.75,237.6,2.6377]
[1733642162590,2.102,237.71,237.67,8.63206658]
[1733642163190,2.1019,237.72,237.68,2.1022]
[1733642163391,6.52976658,237.73,237.68,2.1022]
[1733642163590,6.52976658,237.73,237.67,6.52976658]
[1733642164389,6.52976658,237.73,237.66,2.1024]
[1733642164390,2.102,237.71,237.66,2.1024]
[1733642164589,6.52976658,237.73,237.66,2.1024]
[1733642165693,2.1021,237.7,237.66,2.1024]
[1733642166496,2.1022,237.69,237.65,2.1025]
[1733642167688,2.1022,237.69,237.63,0.39069]
[1733642167689,6.52976658,237.69,237.63,0.39069]
[1733642168596,2.1025,237.66,237.63,0.39069]
[1733642169197,6.52976658,237.69,237.63,0.39069]
[1733642169685,1.78,237.72,237.66,6.52976658]
[1733642170593,2.1021,237.71,237.67,2.1023]
[1733642170894,1.78,237.72,237.66,6.52976658]
[1733642171089,2.102,237.71,237.67,2.1023]
[1733642171295,7.79576658,237.74,237.68,6.52976658]
[1733642171795,6.52976658,237.74,237.7,2.102]
[1733642172090,6.52976658,237.74,237.64,1.78]
[1733642172299,6.52976658,237.74,237.67,6.52976658]
[1733642172893,2.1019,237.72,237.68,2.1022]
[1733642173491,2.1019,237.72,237.69,2.1022]
[1733642177191,2.1019,237.72,237.67,8.63206658]
[1733642177391,2.1021,237.7,237.67,6.52976658]
[1733642177794,6.52976658,237.74,237.67,6.52976658]
[1733642178699,2.1019,237.72,237.67,8.63206658]
[1733642180001,2.1019,237.72,237.68,2.1022]
[1733642180302,2.102,237.71,237.68,2.1022]
[1733642187109,2.1019,237.73,237.69,2.1022]
[1733642188508,2.1019,237.73,237.7,2.1021]
[1733642188711,2.1016,237.76,237.7,6.52976658]
[1733642188907,2.1016,237.76,237.71,1.05154497]
[1733642189108,2.1016,237.76,237.72,2.1018]
[1733642189307,2.1016,237.76,237.7,6.52976658]
[1733642189605,2.1016,237.76,237.71,2.10307186]
[1733642189809,2.1014,237.78,237.72,6.52976658]
[1733642190312,2.1015,237.77,237.74,2.1017]
[1733642200514,6.52976658,237.79,237.71,1.8]
[1733642200708,2.1016,237.75,237.72,2.1019]
[1733642201115,6.52976658,237.77,237.69,6.52976658]
[1733642201811,2.1018,237.74,237.71,2.102]
[1733642202012,2.1018,237.74,237.69,6.52976658]
[1733642202517,2.1018,237.74,237.7,2.1021]
[1733642203416,2.1019,237.73,237.69,8.63186658]
[1733642203615,6.52976658,237.75,237.69,6.52976658]
[1733642203811,6.52976658,237.75,237.67,8.32976658]
[1733642204418,2.102,237.72,237.69,2.1021]
[1733642206918,2.102,237.72,237.68,2.1022]
[1733642207323,2.102,237.71,237.68,2.1022]
[1733642207524,2.102,237.71,237.67,8.63206658]
[1733642208027,2.102,237.71,237.67,6.52976658]
[1733642208624,2.1019,237.72,237.68,2.1022]
[1733642210529,2.1019,237.72,237.67,6.52976658]
[1733642210830,2.1019,237.72,237.69,2.1021]
[1733642211233,2.1019,237.72,237.67,6.52976658]
[1733642211431,2.1019,237.72,237.68,2.1022]
[1733642215229,2.1018,237.73,237.69,2.1021]
[1733642215424,8.32976658,237.77,237.69,6.52976658]
[1733642215624,6.52976658,237.77,237.69,6.52976658]
[1733642216230,2.1018,237.74,237.7,2.1021]
[1733642216426,6.52976658,237.77,237.7,2.1021]
[1733642217637,2.1018,237.73,237.7,2.1021]
[1733642218632,2.1017,237.74,237.71,2.102]
[1733642221335,2.1017,237.74,237.69,6.52976658]
[1733642221537,2.1017,237.74,237.7,3.15371649]
[1733642221738,2.1017,237.74,237.7,2.1021]
[1733642221935,2.1017,237.74,237.69,6.52976658]
[1733642222140,2.1017,237.74,237.7,1.05163165]
[1733642222337,2.1017,237.74,237.69,6.52976658]
[1733642222541,2.1017,237.74,237.7,1.05163015]
[1733642222838,2.1017,237.74,237.65,4.0505]
[1733642222839,3.1151,237.81,237.73,6.52976658]
[1733642223038,9.64486658,237.81,237.73,6.52976658]
[1733642223237,2.1014,237.78,237.74,2.1016]
[1733642223846,2.1014,237.78,237.75,2.1016]
[1733642224041,2.1014,237.78,237.75,8.63136658]
[1733642224240,2.1013,237.79,237.75,8.63136658]
[1733642224538,2.1013,237.79,237.75,6.52976658]
[1733642224743,1.78,237.84,237.75,6.52976658]
[1733642224945,2.1012,237.8,237.77,6.52976658]
[1733642225640,2.1013,237.79,237.77,6.52976658]
[1733642226245,2.1011,237.81,237.77,8.63116658]
[1733642226740,2.1011,237.81,237.77,6.52976658]
[1733642226944,6.52976658,237.83,237.76,2.1015]
[1733642226945,2.1012,237.8,237.76,2.1015]
[1733642229045,2.1012,237.8,237.77,6.52976658]
[1733642229247,2.1012,237.81,237.77,8.63116658]
[1733642230246,2.1013,237.8,237.75,8.63126658]
[1733642230443,6.52976658,237.82,237.75,8.63126658]
[1733642231246,2.1014,237.79,237.75,8.63126658]
[1733642232145,2.1014,237.78,237.75,8.63126658]
[1733642232548,2.1014,237.78,237.75,6.52976658]
[1733642237553,6.52976658,237.78,237.71,1.78]
[1733642237749,6.52976658,237.78,237.71,8.30976658]
[1733642238350,2.1017,237.75,237.71,10.41176658]
[1733642239449,6.52976658,237.78,237.67,0.31674]
[1733642239649,2.1018,237.73,237.69,8.63196658]
[1733642239850,2.1018,237.73,237.69,6.52976658]
[1733642240050,2.1018,237.73,237.7,1.05159128]
[1733642240254,2.1018,237.73,237.69,6.52976658]
[1733642241545,6.52976658,237.78,237.69,8.63196658]
[1733642241750,2.1019,237.73,237.69,8.63196658]
[1733642242448,6.52976658,237.76,237.69,6.52976658]
[1733642242651,6.52976658,237.74,237.67,6.84650658]
[1733642244155,8.32976658,237.74,237.67,0.31674]
[1733642246154,2.1022,237.69,237.67,0.31674]
[1733642247159,2.1021,237.71,237.67,6.84650658]
[1733642248067,2.1021,237.7,237.67,6.84650658]
[1733642250466,1.3254,237.78,237.67,6.84650658]
[1733642250670,1.3254,237.78,237.7,2.1021]
[1733642250671,2.1018,237.74,237.7,2.1021]
[1733642255372,2.1018,237.73,237.7,2.1021]
[1733642259470,2.1018,237.73,237.71,6.52976658]
[1733642263373,2.1021,237.7,237.69,6.52976658]
[1733642264778,2.102,237.71,237.69,6.52976658]
[1733642266375,2.102,237.71,237.68,2.1022]
[1733642266578,2.102,237.71,237.69,6.52976658]
[1733642269171,8.32976658,237.77,237.69,6.52976658]
[1733642269374,2.1019,237.73,237.69,8.63186658]
[1733642272275,2.1019,237.73,237.7,2.1021]
[1733642272681,8.32976658,237.77,237.71,6.52976658]
[1733642272682,2.1016,237.75,237.71,6.52976658]
[1733642273683,2.1016,237.75,237.72,2.1019]
[1733642274482,2.1017,237.74,237.72,2.1019]
[1733642274674,2.1017,237.74,237.71,6.52976658]
[1733642274875,2.1017,237.74,237.71,8.63176658]
[1733642279085,6.52976658,237.76,237.69,2.1021]
[1733642279292,6.52976658,237.76,237.7,1.05164579]
[1733642279487,6.52976658,237.76,237.68,6.52976658]
[1733642279687,2.102,237.72,237.69,2.10330564]
[1733642279884,2.102,237.72,237.68,8.63196658]
[1733642280084,2.102,237.72,237.69,2.10331697]
[1733642280289,2.102,237.72,237.7,1.05165721]
[1733642280489,2.102,237.72,237.68,6.52976658]
[1733642280793,2.102,237.72,237.69,2.10332488]
[1733642280994,2.102,237.72,237.7,1.05166207]
[1733642281190,2.102,237.72,237.68,6.52976658]
[1733642281389,2.102,237.72,237.69,2.10331798]
[1733642281587,2.102,237.72,237.7,1.05165899]
[1733642281788,2.102,237.72,237.69,2.1021]
[1733642281990,2.102,237.72,237.7,1.05165824]
[1733642282191,2.102,237.72,237.69,2.1021]
[1733642282393,2.102,237.72,237.7,2.10330928]
[1733642282590,2.102,237.72,237.7,1.05165464]
[1733642282790,2.102,237.72,237.69,2.1021]
[1733642282993,2.102,237.72,237.7,1.05165538]
[1733642283190,2.102,237.72,237.69,2.1021]
[1733642283396,2.102,237.72,237.7,1.05165538]
[1733642283596,2.102,237.72,237.69,2.1021]
[1733642283795,2.102,237.72,237.7,2.10330928]
[1733642284095,2.102,237.72,237.69,2.1021]
[1733642284300,2.102,237.72,237.7,2.10331076]
[1733642284488,2.102,237.72,237.69,2.1021]
[1733642284693,2.102,237.72,237.7,2.10331798]
[1733642284894,2.102,237.72,237.69,2.1021]
[1733642285094,2.102,237.72,237.7,2.10330928]
[1733642285291,2.102,237.72,237.69,2.1021]
[1733642285602,2.102,237.72,237.7,1.05165464]
[1733642285793,2.102,237.72,237.69,2.1021]
[1733642286100,2.102,237.72,237.7,2.10331648]
[1733642286297,2.102,237.72,237.69,2.1021]
[1733642286499,2.102,237.72,237.7,2.1033237]
[1733642286689,2.102,237.72,237.69,2.1021]
[1733642286894,2.102,237.72,237.7,2.1033237]
[1733642287194,2.102,237.72,237.68,2.1022]
[1733642287390,2.102,237.72,237.69,2.1033275]
[1733642287594,2.102,237.72,237.7,2.1033275]
[1733642287796,2.102,237.72,237.68,2.1022]
[1733642288092,2.102,237.72,237.69,2.10333452]
[1733642288398,2.102,237.72,237.7,2.10333452]
[1733642288594,2.102,237.72,237.68,2.1022]
[1733642288799,6.52976658,237.76,237.69,2.10333156]
[1733642288998,2.1021,237.7,237.67,2.1023]
[1733642289189,2.1021,237.7,237.68,1.05168825]
[1733642289393,2.1021,237.7,237.67,2.1023]
[1733642289594,2.1021,237.7,237.68,1.05174619]
[1733642289900,2.1021,237.7,237.67,2.1023]
[1733642290099,2.1021,237.7,237.68,1.05175288]
[1733642290399,2.1021,237.7,237.67,2.1023]
[1733642290699,2.1021,237.7,237.68,1.05174566]
[1733642290900,2.1021,237.7,237.67,2.1023]
[1733642291096,2.1021,237.7,237.68,1.05174566]
[1733642291293,2.1021,237.7,237.67,2.1023]
[1733642291498,2.1021,237.7,237.68,1.05174576]
[1733642291795,2.1021,237.7,237.67,2.1023]
[1733642291996,2.1021,237.7,237.68,1.05174937]
[1733642292193,6.52976658,237.74,237.44,125.04973626]
[1733642292490,1.8,237.77,237.67,6.52976658]
[1733642292491,6.52976658,237.75,237.67,6.52976658]
[1733642292696,1.8,237.77,237.69,6.52976658]
[1733642292888,2.1017,237.74,237.7,2.1021]
[1733642293299,2.1017,237.74,237.71,1.05162487]
[1733642293495,2.1017,237.74,237.7,2.1021]
[1733642293698,2.1017,237.74,237.71,1.05161861]
[1733642293896,2.1017,237.74,237.69,6.52976658]
[1733642294096,2.1017,237.74,237.71,8.63176658]
[1733642294502,1.8,237.77,237.71,6.52976658]
[1733642294503,2.1016,237.75,237.71,6.52976658]
[1733642294700,2.1016,237.75,237.72,2.1019]
[1733642295497,2.1016,237.75,237.71,8.63176658]
[1733642295697,2.1016,237.75,237.72,1.05160852]
[1733642295898,2.1016,237.75,237.71,8.63176658]
[1733642296096,2.1016,237.75,237.72,1.05160785]
[1733642296398,2.1016,237.75,237.71,8.63176658]
[1733642296701,2.1016,237.75,237.72,1.05160785]
[1733642296896,2.1016,237.75,237.71,8.63176658]
[1733642297797,2.1018,237.74,237.7,2.1021]
[1733642297998,2.1018,237.74,237.71,1.05162507]
[1733642298200,2.1018,237.74,237.7,2.1021]
[1733642298500,2.1018,237.74,237.71,1.05162527]
[1733642298705,2.1018,237.74,237.7,2.1021]
[1733642298897,2.1018,237.74,237.71,1.0516269]
[1733642299099,2.1018,237.74,237.7,2.1021]
[1733642299300,2.1018,237.74,237.71,1.05162245]
[1733642299501,2.1018,237.74,237.7,2.1021]